Cogmind - Beta 9.6 @@@ ROGUE MODE // 2020.09.07 @ 22:08:44 Player: dhtilly Result: Destroyed by G-34 Mercenary with Small Laser Performance ------------- Evolutions (1) 500 Regions Visited (2) 400 Robots Destroyed (47) 235 Value Destroyed (1040) 1040 Prototype IDs (1) 20 Alien Tech Used (0) 0 Bonus (0) 0 TOTAL SCORE: 2195 Bonus ------- None Cogmind --------- Core Integrity 0/400 Matter 290/300 Energy 195/265 System Corruption 0% Temperature Cool (455) Movement Rolling (120) Ox2 Location -9/Materials Parts ------- > --- POWER (1) -------- Improved Ion Engine > --- PROPULSION (2) --- Compact Wheel Compact Wheel > --- UTILITY (4) ------ High-capacity Storage Unit High-capacity Storage Unit Transport Network Coupler Light Armor Plating > --- WEAPON (2) ------- Advanced Beam Cannon Advanced Beam Cannon > --- INVENTORY (20) --- Light Treads Improved Aluminum Leg Compact Wheel Medium Storage Unit Large Storage Unit Large Storage Unit Light Armor Plating Small Laser Beam Rifle Particle Cannon Heavy Assault Rifle Datajack Heavy Hammer Axe Peak State ------------ > --- POWER ------------ Light Deuterium Engine > --- PROPULSION ------- Wheel Wheel > --- UTILITY ---------- Improved Heat Sink Large Storage Unit Large Storage Unit Transmission Jammer > --- WEAPON ----------- Light Assault Rifle Axe > --- INVENTORY -------- Light Ion Engine Light Ion Engine Light Nuclear Core Wheel Small Storage Unit Medium Storage Unit Targeting Computer Datajack [Rating: 18] Favorites ----------- Power Ion Engine Engine Ion Engine Power Core Light Nuclear Core Propulsion Compact Wheel Leg Improved Aluminum Leg Wheel Compact Wheel Utility Large Storage Unit Device Transmission Jammer Storage Large Storage Unit Processor Targeting Computer Protection Light Armor Plating Weapon Light Assault Rifle Energy Gun EM Pulse Gun Energy Cannon Advanced Beam Cannon Ballistic Gun Light Assault Rifle Impact Weapon Heavy Hammer Slashing Weapon Axe Build | -11 -10 -9 ------- Run | Scr Mat Mat Slots Evolved 2 | . . 2 Power . | . . . Propulsion . | . . . Utility 2 | . . 2 Weapon . | . . . Parts Attached 44 | 6 14 24 Power 7 | 1 1 5 Engine 6 | 1 1 4 Core 1 | . . 1 Reactor . | . . . Propulsion 8 | 2 2 4 Treads . | . . . Leg 1 | . . 1 Wheel 7 | 2 2 3 Hover . | . . . Flight . | . . . Utility 12 | 1 3 8 Device 2 | . . 2 Storage 6 | 1 3 2 Processor 2 | . . 2 Hackware . | . . . Protection 2 | . . 2 Artifact . | . . . Weapon 17 | 2 8 7 Energy Gun 6 | 2 3 1 Energy Cannon 2 | . . 2 Ballistic Gun 6 | . 5 1 Ballistic Cannon . | . . . Launcher . | . . . Special Weapon . | . . . Impact Weapon 1 | . . 1 Slashing Weapon 2 | . . 2 Piercing Weapon . | . . . Special Melee Weapon . | . . . Unidentified Prototypes 1 | . . 1 Parts Lost 20 | . 6 14 Power 4 | . . 4 Propulsion 5 | . 2 3 Utility 3 | . . 3 Weapon 8 | . 4 4 Highest Loss Streak 6 | . 2 6 Average Slot Usage (%) 89 | . 95 81 Engine 10 | . 14 4 Leg 1 | . . 3 Wheel 20 | . 26 11 Device 3 | . . 9 Storage 24 | . 25 22 Processor 2 | . . 5 Protection 2 | . . 5 Energy Gun 8 | . 12 1 Energy Cannon 1 | . . 3 Ballistic Gun 10 | . 15 3 Impact Weapon 1 | . . 3 Slashing Weapon 2 | . . 6 Naked Turns . | . . . Heaviest Build 82 | 13 40 82 Greatest Support 32 | 32 32 32 Greatest Overweight (x) 5 | . 3 5 Average Overweight (x) 1 | . 1 2 Largest Inventory Capacity 20 | 6 16 20 Average Capacity 14 | 4 13 17 Most Carried 16 | 4 11 16 Average Carried 9 | 2 8 10 Final Capacity 20 | 6 16 20 Final Carried 14 | 4 9 14 Class Distribution -------------------- 86% | Mutant 8% | Scavenger-Mutant 4% | Hauler-Mutant Dominant Class ---------------- Mutant | -10/Materials Mutant | -9/Materials Resources | -11 -10 -9 ----------- Run | Scr Mat Mat Matter Collected 681 | 209 265 207 Remotely . | . . . Salvage Created 1877 | . 789 1088 Parts 105 | . 51 54 Haulers Intercepted 6 | . 2 4 Recyclers Shooed 1 | . . 1 Parts Field Recycled . | . . . Retrieved Matter . | . . . Parts Self-Destructed . | . . . Prevented . | . . . Kills | -11 -10 -9 ------- Run | Scr Mat Mat Combat Hostiles Destroyed 32 | . 14 18 Melee 12 | . . 12 Guns 17 | . 14 3 Cannons 3 | . . 3 Classes Destroyed 10 | . 6 4 Worker 1 | . . 1 Builder 2 | . 2 . Hauler 6 | . 2 4 Recycler 3 | . . 3 Operator 1 | . 1 . Watcher 2 | . 2 . Swarmer 11 | . 3 8 Grunt 15 | . 11 4 Duelist 1 | . . 1 Sentry 5 | . . 5 Best Kill Streak 6 | . 6 4 Combat Bots Only 5 | . 5 4 Max Kills in Single Turn 1 | . 1 1 Gunslinging . | . . . Exploded . | . . . Melee 1 | . . 1 Uniques/NPCs Destroyed . | . . . Combat | -11 -10 -9 -------- Run | Scr Mat Mat Damage Taken 2061 | . 664 1397 Core 567 | . 162 405 Absorbed by Shields . | . . . Core Remaining (%) 67 | 100 35 . Volleys Fired 105 | . 73 32 Largest 2 | . 2 2 Hottest 136 | . 70 136 Shots Fired 200 | . 146 54 Gun 172 | . 146 26 Cannon 28 | . . 28 Launcher . | . . . Special . | . . . Kinetic 113 | . 95 18 Thermal 52 | . 16 36 Explosive . | . . . Electromagnetic 35 | . 35 . Robot Hit Streak 10 | . 10 4 Robot Miss Streak 4 | . 3 4 Penetration Max . | . . . Secondary Targets 3 | . 3 . Max Gunslinging Chain 1 | . 1 . Shots Hit Robots 153 | . 87 66 Core Hits 69 | . 40 29 Critical Hits 5 | . . 5 Critical Kills 2 | . . 2 Critical Parts Destroyed 3 | . . 3 Melee Attacks 55 | . . 55 Impact 10 | . . 10 Slashing 45 | . . 45 Piercing . | . . . Sneak Attacks 7 | . . 7 Combat Hostiles . | . . . Follow-up Attacks 6 | . . 6 Damage Inflicted 3128 | . 933 2195 Guns 1013 | . 900 113 Cannons 272 | . . 272 Explosions 31 | . 31 . Melee 1810 | . . 1810 Ramming 2 | . 2 . Kinetic 532 | . 459 73 Thermal 444 | . 132 312 Explosive . | . . . Electromagnetic 340 | . 340 . Impact 146 | . . 146 Slashing 1664 | . . 1664 Piercing . | . . . Highest Corruption 2 | . 2 . Average Corruption 2 | . 2 . Corruption Purged . | . . . Effects 5 | . 5 . Message Errors 1 | . 1 . Heat Flow Errors 1 | . 1 . Data Loss (minor) 2 | . 2 . Targeting Errors 1 | . 1 . Overload Shots . | . . . Overflow Damage 309 | . . 309 Projectiles 3 | . . 3 Explosions . | . . . Melee 306 | . . 306 Knockbacks . | . . . Impact . | . . . Kinetic . | . . . Secondary . | . . . Self-Inflicted Damage 1 | . 1 . Shots . | . . . Rammed 1 | . 1 . Targets Rammed 1 | . 1 . Kicked . | . . . Crushed . | . . . Highest Temperature 462 | . 266 462 Average Temperature 53 | . 34 109 Received Heat Transfer 552 | . 339 213 Effects 1 | . . 1 Energy Bleed 1 | . . 1 Siege Activations . | . . . Robots Corrupted . | . . . Combat Hostiles . | . . . Parts Fried 1 | . 1 . Impact Corruptions 2 | . . 2 Robots Melted . | . . . Combat Hostiles . | . . . Parts Melted 4 | . 1 3 Heat Transferred 938 | . 346 592 Parts Sabotaged . | . . . Parts Stolen . | . . . Parts Stripped . | . . . Power Chain Reactions 1 | . 1 . Missiles Intercepted . | . . . Alert | -11 -10 -9 ------- Run | Scr Mat Mat Peak Influence 264 | . 264 236 Average Influence 108 | . 83 152 Maximum Alert Level 1 | . 1 1 Low Security (%) 86 | 100 94 72 Level 1 13 | . 5 27 Level 2 . | . . . Level 3 . | . . . Level 4 . | . . . Level 5 . | . . . High Security . | . . . Max Security . | . . . Squads Dispatched 5 | . 3 2 Investigation 2 | . 1 1 Extermination . | . . . Reinforcement 3 | . 2 1 Assault . | . . . Garrison . | . . . Intercept . | . . . Construction Impeded . | . . . Haulers Reinforced . | . . . Stealth | -11 -10 -9 --------- Run | Scr Mat Mat Distress Signals 4 | . 2 2 Communications Jammed 17 | . . 17 Distress Signals 17 | . . 17 Times Spotted 67 | . 34 33 Peak Tracking Total 10 | . 6 10 Tactical Retreats 4 | . 1 3 Traps | -11 -10 -9 ------- Run | Scr Mat Mat Traps Triggered 3 | . 2 1 Indirectly . | . . . Trap Hack Attempts . | . . . Triggered . | . . . Disarmed . | . . . Reprogrammed . | . . . Reused . | . . . Traps Extracted . | . . . Installed . | . . . Triggered . | . . . Machines | -11 -10 -9 ---------- Run | Scr Mat Mat Machines Disabled 2 | . 1 1 Max in Single Turn 1 | . 1 1 Machines Sabotaged . | . . . Garrisons Compromised . | . . . Overloaded Fab Kills . | . . . Fab Network Shutdowns . | . . . Hacking | -11 -10 -9 --------- Run | Scr Mat Mat Machines Accessed 9 | . 6 3 Terminals 9 | . 6 3 Fabricators . | . . . Repair Stations . | . . . Recycling Units . | . . . Scanalyzers . | . . . Garrison Access . | . . . Total Hacks 34 | . 17 17 Successful 18 | . 7 11 Failed 16 | . 10 6 Catastrophic 5 | . 5 . Database Lockouts . | . . . Manual 13 | . 9 4 Terminals 34 | . 17 17 Fabricators . | . . . Repair Stations . | . . . Recycling Units . | . . . Scanalyzers . | . . . Garrison Access . | . . . Terminal Hacks 16 | . 7 9 Robot Analysis 1 | . . 1 Level Access Points 1 | . 1 . Emergency Access Points 1 | . 1 . Alert Level 3 | . 1 2 Unreport Threat 2 | . 1 1 Locate Traps 1 | . 1 . Security Status 1 | . . 1 Hauler Manifests 1 | . . 1 Registered Components 1 | . . 1 Zone Layout 4 | . 2 2 Fabricator Hacks . | . . . Repair Station Hacks . | . . . Recycling Unit Hacks . | . . . Scanalyzer . | . . . Garrison Access Hacks . | . . . Unauthorized Hacks 2 | . . 2 Terminals 2 | . . 2 Track 2 | . . 2 Fabricators . | . . . Repair Stations . | . . . Recycling Units . | . . . Scanalyzers . | . . . Garrison Access . | . . . Data Cores Recovered 1 | . 1 . Used 1 | . 1 . Hacking Detections 7 | . 5 2 Full Trace Events 1 | . 1 . Feedback Events . | . . . Feedback Blocked . | . . . Robot Schematics Acquired . | . . . Robots Built . | . . . Matter . | . . . Time . | . . . Total Robot Build Rating . | . . . Part Schematics Acquired . | . . . Parts Built . | . . . Matter . | . . . Time . | . . . Total Part Build Rating . | . . . Parts Repaired . | . . . Time . | . . . Parts Recycled . | . . . Recycled Matter . | . . . Retrieved Matter . | . . . Retrieved Components . | . . . Parts Scanalyzed . | . . . Part Schematics Acquired . | . . . Parts Damaged . | . . . Bothacking | -11 -10 -9 ------------ Run | Scr Mat Mat Used RIF Installer . | . . . Robots Hacked . | . . . Non-combat . | . . . Combat . | . . . Robot Hacks Applied . | . . . Relay Couplers Released . | . . . Robots Rewired . | . . . Allies Hacked . | . . . Hacks Repelled . | . . . Allies | -11 -10 -9 -------- Run | Scr Mat Mat Total Allies . | . . . Largest Group . | . . . Highest-Rated Group . | . . . Highest-Rated Ally . | . . . Total Orders . | . . . Ally Attacks . | . . . Total Damage . | . . . Kills . | . . . Allies Corrupted . | . . . Allies Melted . | . . . Intel | -11 -10 -9 ------- Run | Scr Mat Mat Robot Analysis Total 1 | . . 1 Derelict Logs Recovered . | . . . Drone Launches . | . . . Drone Recoveries . | . . . Exploration | -11 -10 -9 ------------- Run | Scr Mat Mat Turns Passed 1845 | 51 1077 717 Spaces Moved 1123 | 38 760 325 Core 48 | 2 46 . Treads . | . . . Legs 54 | . . 54 Wheels 1021 | 36 714 271 Hover . | . . . Flight . | . . . Fastest Speed 50 | 50 90 90 Average Speed 113 | 97 106 130 Slowest Speed 270 | 100 200 270 Overloaded Moves . | . . . Propulsion Burnouts . | . . . Robots Hopped . | . . . Cave-ins Triggered . | . . . Exploration Rate (%) 44 | 3 98 32 Regions Visited 2 Branch Regions . Pre-discovered Areas . | . . . Known Exits Taken 1 | . 1 . Unknown Exits Taken 1 | 1 . . Scrap Searched . | . . . Spaces Dug . | . . . Terrain Destroyed 6 | . 6 . Melee . | . . . Projectile . | . . . AOE 6 | . 6 . Actions | -11 -10 -9 --------- Run | Scr Mat Mat Total 1427 | 48 895 484 Wait 73 | 1 35 37 Move 1121 | 37 759 325 Hop . | . . . Pick Up 28 | 4 10 14 Fast Attach 19 | 6 5 8 Attach 18 | . 5 13 Detach 5 | . . 5 Swap 7 | . 4 3 Drop 5 | . 3 2 Fire 105 | . 73 32 Melee 45 | . . 45 Ram 1 | . 1 . Kick . | . . . Crush . | . . . Escape Stasis . | . . . Rewire . | . . . Trap . | . . . Miscellaneous . | . . . Route ------- -11/Scrapyard -10/Materials (discovered 4 exits: *Mat x3 / [*Min]) -9/Materials (discovered 1 exit: [*Min]) History --------- Turn | Location | Event 18 | -11/Scrapyard | Discovered new exit (range 15) 52 | -11/Scrapyard | Entered Materials 108 | -10/Materials | Discovered new exit (range 13) 157 | -10/Materials | Discovered new exit (range 13) 329 | -10/Materials | Build established: Mutant 531 | -10/Materials | Discovered new exit (range 8) 568 | -10/Materials | Identified exit to Materials 683 | -10/Materials | Core integrity fell below 50% 1129 | -10/Materials | Entered another Materials area 1129 | -9/Materials | Evolved 2 slots: Utility x2 1286 | -9/Materials | Discovered new exit (range 15) 1501 | -9/Materials | Core integrity fell below 50% 1506 | -9/Materials | Lost 6 parts (2p2n2u) 1653 | -9/Materials | Core integrity fell below 20% 1846 | -9/Materials | Destroyed by G-34 Mercenary with Small Laser Last Messages --------------- 01806_ ALERT: Alarm triggered, dispatching investigation squad. 01810_ U-05 Engineer lays Concrete. 01818_ Connecting with Terminal... >>Alert(Check) Current Alert Level: 1-F >>Alert(Purge) Purged threat record, alert level lowered. >>Inventory(Components) Retrieving component inventory records... Found 2 registered component stockpiles: HULK91NHOE: Lrg. Matter Pod 30DLD23IEN: Heat Sink Downloaded coordinate data. 01830_ Heat Sink melted. 01830_ G-34 Mercenary destroyed. 01833_ Terminal disabled. 01839_ Destroyed Flight Unit. 01839_ S-10 Pest destroyed. 01840_ Overheating: Energy bleed (-44). 01844_ Lgt. Armor Plating destroyed. Map ----- +----------------------------------------------------+ | ?? /??????? #?????????????????? | | ?? #??????? #?????????????????? | | ???######+####### #??????? #?????????????????? | | ????????????????# #??????? #?????????????????? | | ????????????????# #?????## ##????????????????? | | ????????????????#! %####### ##########???????? | | ????????????????# ] [ ??????? | | ????????????????# = ==% T ??????? | | ????????????????# * %=%*[ ??????? | | ????????????????##%####+### #######??????????? | | ?????????????????#=#?#%%%%#######?!??????????????? | | ?######??????????# #?#*[= #??????????????????????? | | ?#= #??????????# #?# #??????????????????????? | | ?# #??????????# #?# #??????????????????????? | | ?# #???????#### ### #??????????????????????? | | ?# #???????# #################????????????? | | ?# ######### * ?????????????? | | ?# ## #=! %! ?????????????? | | ?##+#### #!!! """?????????????? | | ??# + """ #=%=! ###g### """""""??????????? | | ??# #### """ ## !*### # t""" """ ???????? | | ??# #??# """ ##% #?# " s# ??????? | | ??# #??# ##!%]#?# T # ??????? | | ### ######+#+### ]### s =#* ??????? | | ! % = + !*%g% ??????? | | ]%* ### =%@# ??????? | | = #?# = ### #####???????? | | #################+##?# #?? ##???????????? | | ???????????????? ?# #??? #????????????? | | ???????????????? ######???### #????????????? | | ???????????????? #??????????? / ???????????? | | ???????????????? #???????????? # "??????????? | | ???????????????? #????????????? #? ?????????? | | ???????????????? ???????????????#????????????? | | ???????????????? #???????????????????????????? | | ???????????????? #???????????????????????????? | | ???????????????? #???????????????????????????? | | ????????????????######???????????????????????????? | | ?????????????????????????????????????????????????? | | ?????????????????????????????????????????????????? | | ?????????????????????????????????????????????????? | | ?????????????????????????????????????????????????? | | ?????????????????????????????????????????????????? | | ?????????????????????????????????????????????????? | | ???a?????????????????????????????????????????????? | | ?????????????????????????????????????????????????? | | ?????????????????????????????????????????????????? | | ?????????????????????????????????????????????????? | | ?????????????????????????????????????????????????? | | ?????????????????????????????????????????????????? | +----------------------------------------------------+ Best States ------------- Heat Dissipation 42 Energy Generation 14 Energy Capacity 265 Matter Stores 300 Matter Capacity 300 Sight Range 16 Terrain Scan Density 10 Jamming Range 8 Armor Coverage 150 Evasion (%) 42 Targeting Accuracy 5 Item Schematics ----------------- None Robot Schematics ------------------ None Fabricated ------------ Nothing Alien Tech Used ----------------- None Achievements -------------- None Challenges ------------ None Game ------ Seed ShadingDataScreen Manual? 0 Play Time 00:22:32 Cumulative 63.8 hours Start 2020.09.07 @ 17:03:20 End 2020.09.07 @ 22:08:44 Sessions 3 Manual Loads 0 Difficulty Rogue Special Mode None Game No. 34 Rogue 34 Adventurer 0 Explorer 0 Win Type - Total 0 Types 0/0/0/0/0/0/0 Lore% 29 Gallery% 48 Achievement% 36 Wizard Run 0 Options --------- ASCII 0 Keyboard 1 Movement Vi Keybinds 0 Fullscreen 1 Font 18/SmallcapsGlow Map View 112x50 Tactical HUD 1 Map Filters NONE Filters NONE Steam X RUN: 5de07e07-a743-46fe-8700-32cd0a9978ba